[Event "26th Hit Open-A 2022"]
[Site "Nova Gorica"]
[Date "2022.09.15"]
[Round "1.30"]
[White "Novak, Rok"]
[Black "Devnani Kush"]
[Result "0-1"]
[ECO "B28"]
[WhiteElo "1763"]
[BlackElo "2095"]
[Annotator "ChessBase"]
[PlyCount "96"]
[EventDate "2022.09.16"]
[EventType "swiss"]
[EventCountry "SLO"]
[SourceTitle "playchess.com"]
[Source "ChessBase"]
[SourceQuality "1"]
[TimeControl "5400+30"]

1. e4 {[%emt 0:00:04]} c5 {[%emt 0:00:06]} 2. Nf3 {[%emt 0:00:06]} a6 {[%emt 0:00:05]} 3. Nc3 {[%emt 0:00:17]} b5 {[%emt 0:00:47]} 4. d4 {[%emt 0:01:41]} cxd4 {[%emt 0:00:05]} 5. Nxd4 {[%emt 0:00:10]} Bb7 {[%emt 0:00:16]} 6. a3 {[%emt 0:01:20]} d6 {[%emt 0:05:42]} 7. Bd3 {[%emt 0:04:06]} e5 {[%emt 0:02:26]} 8. Nf3 {[%emt 0:01:39]} Nf6 {[%emt 0:01:37]} 9. O-O {[%emt 0:01:48]} Be7 {[%emt 0:00:04]} 10. Qe2 {[%emt 0:04:48]} O-O {[%emt 0:01:05]} 11. Bg5 {[%emt 0:00:49]} Nbd7 {[%emt 0:05:33]} 12. Rad1 {[%emt 0:02:46]} Re8 {[%emt 0:03:00]} 13. Rfe1 {[%emt 0:02:20]} Qc7 {[%emt 0:05:43]} 14. h3 {[%emt 0:04:48]} Nc5 {[%emt 0:07:44]} 15. Bxf6 {[%emt 0:01:53]} Bxf6 {[%emt 0:00:06]} 16. g4 {[%emt 0:03:21]} Ne6 {[%emt 0:14:23]} 17. Qe3 {[%emt 0:01:36]} Nf4 {[%emt 0:08:28]} 18. Bf1 {[%emt 0:00:11]} h6 {[%emt 0:03:15]} 19. Rd2 {[%emt 0:01:58]} Rad8 {[%emt 0:07:09]} 20. Red1 {[%emt 0:01:08]} Bc6 {[%emt 0:01:53]} 21. Ne2 {[%emt 0:02:57]} Ne6 {[%emt 0:01:48]} 22. Ng3 {[%emt 0:01:19]} Ng5 {[%emt 0:04:15]} 23. Bg2 {[%emt 0:03:11]} Be7 {[%emt 0:02:58]} 24. Ne1 {[%emt 0:01:46]} Ne6 {[%emt 0:00:38]} 25. Nf3 {[%emt 0:05:08]} Nf4 {[%emt 0:01:04]} 26. Bf1 {[%emt 0:00:12]} Qb7 {[%emt 0:01:32]} 27. c3 {[%emt 0:01:39]} g6 {[%emt 0:00:40]} 28. Kh2 {[%emt 0:01:52]} Kg7 {[%emt 0:00:24]} 29. Bd3 {[%emt 0:03:02]} Qc8 {[%emt 0:03:09]} 30. Ne2 {[%emt 0:03:06]} Ne6 {[%emt 0:01:44]} 31. Bb1 {[%emt 0:01:09]} Rh8 {[%emt 0:01:24]} 32. Ng3 {[%emt 0:01:22]} Nf4 {[%emt 0:00:19]} 33. Ne2 {[%emt 0:04:29]} Ne6 {[%emt 0:00:06]} 34. Ng3 {[%emt 0:01:14]} h5 {[%emt 0:01:18]} 35. gxh5 {[%emt 0:09:58]} Nf4 {[%emt 0:00:06]} 36. Ng1 {[%emt 0:03:18]} Nxh5 {[%emt 0:01:27]} 37. Bd3 {[%emt 0:02:09]} Nf4 {[%emt 0:02:51]} 38. Bf1 {[%emt 0:00:16]} Bd7 {[%emt 0:01:32]} 39. N3e2 {[%emt 0:00:08]} Bg5 {[%emt 0:05:38]} 40. Rxd6 {[%emt 0:01:38]} Nxh3 {[%emt 0:00:41]} 41. Qa7 {[%emt 0:00:07]} Nf4+ {[%emt 0:02:44]} 42. Kg3 {[%emt 0:00:07]} Bg4 {[%emt 0:01:04]} 43. Nf3 {[%emt 0:02:10]} Nxe2+ {[%emt 0:00:27]} 44. Bxe2 {[%emt 0:00:19]} Bf4+ {[%emt 0:00:04]} 45. Kg2 {[%emt 0:00:13]} Bh3+ {[%emt 0:00:08]} 46. Kh1 {[%emt 0:00:51]} Bg2+ {[%emt 0:00:48]} 47. Kxg2 {[%emt 0:00:15]} Qh3+ {[%emt 0:00:05]} 48. Kg1 {[%emt 0:00:14]} Qh1# {[%emt 0:00:04]} 0-1

[Event "26th Hit Open-A 2022"]
[Site "Nova Gorica"]
[Date "2022.09.15"]
[Round "1.31"]
[White "Callsen, Niklas"]
[Black "Rigatti, Giorgio"]
[Result "1-0"]
[ECO "B90"]
[WhiteElo "2079"]
[BlackElo "1763"]
[Annotator "ChessBase"]
[PlyCount "65"]
[EventDate "2022.09.16"]
[EventType "swiss"]
[EventCountry "SLO"]
[SourceTitle "playchess.com"]
[Source "ChessBase"]
[SourceQuality "1"]
[TimeControl "5400+30"]

1. e4 {[%emt 0:00:05]} c5 {[%emt 0:01:03]} 2. Nf3 {[%emt 0:00:08]} d6 {[%emt 0:00:25]} 3. d4 {[%emt 0:00:08]} cxd4 {[%emt 0:00:21]} 4. Nxd4 {[%emt 0:00:06]} Nf6 {[%emt 0:00:10]} 5. Nc3 {[%emt 0:00:06]} a6 {[%emt 0:00:24]} 6. h3 {[%emt 0:00:37]} Nc6 {[%emt 0:05:19]} 7. g4 {[%emt 0:02:43]} e6 {[%emt 0:04:55]} 8. g5 {[%emt 0:01:51]} Nd7 {[%emt 0:00:38]} 9. Be3 {[%emt 0:00:57]} Be7 {[%emt 0:00:39]} 10. h4 {[%emt 0:02:30]} Qc7 {[%emt 0:06:17]} 11. Rg1 {[%emt 0:13:12]} Nf8 {[%emt 0:12:20]} 12. Qe2 {[%emt 0:10:46]} Bd7 {[%emt 0:09:40]} 13. Nf5 {[%emt 0:08:31]} Rg8 {[%emt 0:18:34]} 14. O-O-O {[%emt 0:14:15]} O-O-O {[%emt 0:11:10]} 15. Qc4 {[%emt 0:09:23]} Ng6 {[%emt 0:07:20]} 16. Nxe7+ {[%emt 0:02:30]} Ncxe7 {[%emt 0:04:42]} 17. Bb6 {[%emt 0:00:47]} Qxc4 {[%emt 0:00:28]} 18. Bxc4 {[%emt 0:00:07]} Rde8 {[%emt 0:00:23]} 19. h5 {[%emt 0:02:11]} Ne5 {[%emt 0:01:44]} 20. Bb3 {[%emt 0:00:54]} Kb8 {[%emt 0:03:46]} 21. f4 {[%emt 0:00:48]} Nc8 {[%emt 0:02:37]} 22. fxe5 {[%emt 0:01:30]} Nxb6 {[%emt 0:00:02]} 23. exd6 {[%emt 0:00:34]} a5 {[%emt 0:03:12]} 24. a3 {[%emt 0:01:23]} Bc6 {[%emt 0:01:50]} 25. Rgf1 {[%emt 0:01:16]} Rgf8 {[%emt 0:00:24]} 26. e5 {[%emt 0:04:57]} Nd7 {[%emt 0:00:54]} 27. Rde1 {[%emt 0:00:26]} b5 {[%emt 0:00:44]} 28. Rf2 {[%emt 0:05:15]} Rc8 {[%emt 0:02:30]} 29. Rf4 {[%emt 0:02:19]} Kb7 {[%emt 0:01:08]} 30. Kb1 {[%emt 0:01:38]} Kb6 {[%emt 0:00:18]} 31. Nd1 {[%emt 0:01:01]} Bg2 {[%emt 0:01:02]} 32. Ne3 {[%emt 0:00:52]} Bh3 {[%emt 0:00:08]} 33. Rf3 {[%emt 0:00:34]} 1-0

[Event "26th Hit Open-A 2022"]
[Site "Nova Gorica"]
[Date "2022.09.15"]
[Round "1.32"]
[White "Papler, Peter"]
[Black "Debevec, Blaz"]
[Result "0-1"]
[ECO "A48"]
[WhiteElo "1750"]
[BlackElo "2056"]
[Annotator "ChessBase"]
[PlyCount "58"]
[EventDate "2022.09.16"]
[EventType "swiss"]
[EventCountry "SLO"]
[SourceTitle "playchess.com"]
[Source "ChessBase"]
[SourceQuality "1"]
[TimeControl "5400+30"]

1. d4 {[%emt 0:00:04]} Nf6 {[%emt 0:00:08]} 2. Bf4 {[%emt 0:00:07]} g6 {[%emt 0:01:21]} 3. Nf3 {[%emt 0:00:24]} Bg7 {[%emt 0:00:09]} 4. e3 {[%emt 0:01:36]} d6 {[%emt 0:00:30]} 5. Bd3 {[%emt 0:01:53]} O-O {[%emt 0:00:14]} 6. Nbd2 {[%emt 0:01:39]} Nbd7 {[%emt 0:04:49]} 7. O-O {[%emt 0:00:39]} b6 {[%emt 0:00:38]} 8. h3 {[%emt 0:03:03]} Bb7 {[%emt 0:00:19]} 9. c3 {[%emt 0:00:12]} Re8 {[%emt 0:00:28]} 10. Qc2 {[%emt 0:00:35]} e5 {[%emt 0:01:27]} 11. dxe5 {[%emt 0:01:02]} dxe5 {[%emt 0:00:29]} 12. Bg5 {[%emt 0:00:11]} h6 {[%emt 0:06:42]} 13. Bxf6 {[%emt 0:01:57]} Qxf6 {[%emt 0:01:19]} 14. Ne4 {[%emt 0:03:39]} Qe7 {[%emt 0:00:11]} 15. Bc4 {[%emt 0:01:38]} Kh8 {[%emt 0:01:44]} 16. Ned2 {[%emt 0:04:41]} e4 {[%emt 0:01:24]} 17. Nd4 {[%emt 0:02:30]} Ne5 {[%emt 0:00:21]} 18. Be2 {[%emt 0:03:48]} c5 {[%emt 0:01:04]} 19. N4b3 {[%emt 0:00:37]} f5 {[%emt 0:01:40]} 20. Rad1 {[%emt 0:01:01]} Rad8 {[%emt 0:04:50]} 21. Nc1 {[%emt 0:00:42]} Qg5 {[%emt 0:07:07]} 22. Kh1 {[%emt 0:06:34]} Nd3 {[%emt 0:01:03]} 23. f4 {[%emt 0:01:55]} Qg3 {[%emt 0:01:03]} 24. Nc4 {[%emt 0:04:02]} b5 {[%emt 0:02:08]} 25. Bxd3 {[%emt 0:01:56]} exd3 {[%emt 0:00:32]} 26. Nxd3 {[%emt 0:01:24]} bxc4 {[%emt 0:00:24]} 27. Nxc5 {[%emt 0:00:16]} Qxh3+ {[%emt 0:01:22]} 28. Kg1 {[%emt 0:00:11]} Qxe3+ {[%emt 0:00:09]} 29. Kh1 {[%emt 0:00:09]} Qxc5 {[%emt 0:00:10]} 0-1

[Event "26th Hit Open-A 2022"]
[Site "Nova Gorica"]
[Date "2022.09.15"]
[Round "1.33"]
[White "Verbin, Valentina"]
[Black "Zlatanovic, Srdjan"]
[Result "1-0"]
[ECO "B28"]
[WhiteElo "2049"]
[BlackElo "1740"]
[Annotator "ChessBase"]
[PlyCount "55"]
[EventDate "2022.09.16"]
[EventType "swiss"]
[EventCountry "SLO"]
[SourceTitle "playchess.com"]
[Source "ChessBase"]
[SourceQuality "1"]
[TimeControl "5400+30"]

1. e4 {[%emt 0:00:02]} c5 {[%emt 0:00:23]} 2. Nf3 {[%emt 0:00:13]} a6 {[%emt 0:00:23]} 3. c4 {[%emt 0:01:34]} b6 {[%emt 0:02:01]} 4. d4 {[%emt 0:00:51]} cxd4 {[%emt 0:00:42]} 5. Nxd4 {[%emt 0:00:05]} d6 {[%emt 0:00:18]} 6. Nc3 {[%emt 0:00:46]} Bb7 {[%emt 0:00:16]} 7. Be2 {[%emt 0:01:39]} g6 {[%emt 0:00:11]} 8. O-O {[%emt 0:02:37]} Nf6 {[%emt 0:00:11]} 9. f3 {[%emt 0:00:26]} Bg7 {[%emt 0:00:13]} 10. Be3 {[%emt 0:00:28]} Nbd7 {[%emt 0:00:07]} 11. Qd2 {[%emt 0:02:24]} Rc8 {[%emt 0:06:08]} 12. Rfc1 {[%emt 0:03:51]} Qc7 {[%emt 0:02:18]} 13. a4 {[%emt 0:04:45]} O-O {[%emt 0:04:03]} 14. Nd5 {[%emt 0:06:40]} Qd8 {[%emt 0:00:43]} 15. a5 {[%emt 0:07:48]} bxa5 {[%emt 0:13:58]} 16. Nb3 {[%emt 0:04:44]} Rb8 {[%emt 0:12:07]} 17. Nxa5 {[%emt 0:05:49]} Ne8 {[%emt 0:14:06]} 18. Nxb7 {[%emt 0:17:27]} Rxb7 {[%emt 0:00:35]} 19. Rc2 {[%emt 0:00:26]} e6 {[%emt 0:02:14]} 20. Nb4 {[%emt 0:04:11]} Qf6 {[%emt 0:09:39]} 21. Rxa6 {[%emt 0:02:39]} Nc5 {[%emt 0:04:05]} 22. Ra3 {[%emt 0:04:03]} Qe5 {[%emt 0:06:48]} 23. Nc6 {[%emt 0:01:17]} Qh5 {[%emt 0:04:04]} 24. b4 {[%emt 0:00:30]} Rc7 {[%emt 0:04:22]} 25. Nd4 {[%emt 0:03:32]} Nd7 {[%emt 0:00:46]} 26. Ra5 {[%emt 0:01:04]} Qh4 {[%emt 0:01:18]} 27. Nb5 {[%emt 0:00:51]} Rc6 {[%emt 0:00:31]} 28. Bg5 {[%emt 0:00:19]} 1-0

[Event "26th Hit Open-A 2022"]
[Site "Nova Gorica"]
[Date "2022.09.15"]
[Round "1.34"]
[White "Bajec, Borut"]
[Black "Markocic, Tine"]
[Result "1/2-1/2"]
[ECO "E29"]
[WhiteElo "1732"]
[BlackElo "2034"]
[Annotator "ChessBase"]
[PlyCount "103"]
[EventDate "2022.09.16"]
[EventType "swiss"]
[EventCountry "SLO"]
[SourceTitle "playchess.com"]
[Source "ChessBase"]
[SourceQuality "1"]
[TimeControl "5400+30"]

1. d4 {[%emt 0:00:10]} Nf6 {[%emt 0:00:13]} 2. c4 {[%emt 0:00:20]} e6 {[%emt 0:00:28]} 3. Nc3 {[%emt 0:00:39]} Bb4 {[%emt 0:00:32]} 4. Nf3 {[%emt 0:02:06]} c5 {[%emt 0:01:05]} 5. a3 {[%emt 0:03:01]} Bxc3+ {[%emt 0:00:52]} 6. bxc3 {[%emt 0:00:11]} Nc6 {[%emt 0:02:41]} 7. e3 {[%emt 0:01:11]} d6 {[%emt 0:01:02]} 8. Bd3 {[%emt 0:00:51]} e5 {[%emt 0:02:44]} 9. Qc2 {[%emt 0:08:38]} O-O {[%emt 0:01:13]} 10. O-O {[%emt 0:00:20]} Re8 {[%emt 0:00:51]} 11. Ng5 {[%emt 0:02:31]} h6 {[%emt 0:01:25]} 12. Ne4 {[%emt 0:00:18]} exd4 {[%emt 0:09:48]} 13. exd4 {[%emt 0:12:37]} cxd4 {[%emt 0:00:27]} 14. Bd2 {[%emt 0:01:59]} Be6 {[%emt 0:07:52]} 15. Rfe1 {[%emt 0:05:19]} Nxe4 {[%emt 0:05:16]} 16. Rxe4 {[%emt 0:01:12]} d5 {[%emt 0:05:08]} 17. cxd5 {[%emt 0:03:50]} Qxd5 {[%emt 0:00:43]} 18. Rae1 {[%emt 0:01:36]} Rad8 {[%emt 0:00:36]} 19. c4 {[%emt 0:01:22]} Qc5 {[%emt 0:00:44]} 20. Qc1 {[%emt 0:01:04]} Qf8 {[%emt 0:09:14]} 21. h3 {[%emt 0:07:35]} Bc8 {[%emt 0:01:06]} 22. Qd1 {[%emt 0:06:11]} Rxe4 {[%emt 0:00:29]} 23. Bxe4 {[%emt 0:00:21]} Be6 {[%emt 0:01:01]} 24. Qh5 {[%emt 0:02:29]} Qxa3 {[%emt 0:03:17]} 25. Bxh6 {[%emt 0:01:07]} Qa5 {[%emt 0:00:14]} 26. Qxa5 {[%emt 0:04:39]} Nxa5 {[%emt 0:00:05]} 27. Bg5 {[%emt 0:00:22]} Rd7 {[%emt 0:05:33]} 28. Ra1 {[%emt 0:00:43]} b6 {[%emt 0:06:31]} 29. c5 {[%emt 0:04:24]} Nb3 {[%emt 0:03:41]} 30. cxb6 {[%emt 0:00:35]} Nxa1 {[%emt 0:00:10]} 31. b7 {[%emt 0:00:08]} Rxb7 {[%emt 0:00:17]} 32. Bxb7 {[%emt 0:00:02]} Bc4 {[%emt 0:03:09]} 33. f3 {[%emt 0:01:09]} Nb3 {[%emt 0:00:41]} 34. Kf2 {[%emt 0:00:20]} f6 {[%emt 0:04:38]} 35. Bf4 {[%emt 0:00:19]} Nc5 {[%emt 0:00:30]} 36. Be4 {[%emt 0:01:12]} Kf7 {[%emt 0:07:12]} 37. g4 {[%emt 0:08:16]} Ke6 {[%emt 0:01:23]} 38. h4 {[%emt 0:00:24]} Nd3+ {[%emt 0:02:33]} 39. Bxd3 {[%emt 0:01:18]} Bxd3 {[%emt 0:00:04]} 40. Bc7 {[%emt 0:00:27]} Kd5 {[%emt 0:00:20]} 41. Ke1 {[%emt 0:00:15]} Kc6 {[%emt 0:01:50]} 42. Bd8 {[%emt 0:00:22]} Kb5 {[%emt 0:00:29]} 43. Kd2 {[%emt 0:00:24]} Bb1 {[%emt 0:03:25]} 44. Be7 {[%emt 0:01:17]} a5 {[%emt 0:00:43]} 45. Bf8 {[%emt 0:00:11]} g6 {[%emt 0:02:09]} 46. Bg7 {[%emt 0:00:12]} Kc4 {[%emt 0:01:14]} 47. Bxf6 {[%emt 0:00:15]} a4 {[%emt 0:00:05]} 48. Be7 {[%emt 0:00:31]} Kb3 {[%emt 0:00:10]} 49. Kc1 {[%emt 0:00:29]} Bd3 {[%emt 0:00:15]} 50. Kd2 {[%emt 0:00:01]} Bb1 {[%emt 0:00:07]} 51. Kc1 {[%emt 0:00:12]} Bd3 {[%emt 0:00:06]} 52. h5 {[%emt 0:00:31]} 1/2-1/2

[Event "26th Hit Open-A 2022"]
[Site "Nova Gorica"]
[Date "2022.09.15"]
[Round "1.35"]
[White "Mihelic, Vesna"]
[Black "Hellsten, Uffe"]
[Result "1-0"]
[ECO "C01"]
[WhiteElo "2031"]
[BlackElo "1732"]
[Annotator "ChessBase"]
[PlyCount "53"]
[EventDate "2022.09.16"]
[EventType "swiss"]
[EventCountry "SLO"]
[SourceTitle "playchess.com"]
[Source "ChessBase"]
[SourceQuality "1"]
[TimeControl "5400+30"]

1. e4 {[%emt 0:00:04]} e6 {[%emt 0:00:15]} 2. d4 {[%emt 0:00:08]} d5 {[%emt 0:00:03]} 3. exd5 {[%emt 0:00:06]} exd5 {[%emt 0:00:06]} 4. Bd3 {[%emt 0:00:05]} c5 {[%emt 0:01:34]} 5. Nf3 {[%emt 0:02:07]} Nf6 {[%emt 0:01:59]} 6. O-O {[%emt 0:00:53]} c4 {[%emt 0:05:00]} 7. Re1+ {[%emt 0:00:52]} Be7 {[%emt 0:00:07]} 8. Bf1 {[%emt 0:00:27]} O-O {[%emt 0:03:51]} 9. b3 {[%emt 0:01:13]} cxb3 {[%emt 0:07:06]} 10. axb3 {[%emt 0:00:20]} Bg4 {[%emt 0:00:07]} 11. c3 {[%emt 0:20:10]} Ne4 {[%emt 0:05:37]} 12. Qd3 {[%emt 0:04:06]} Nd7 {[%emt 0:05:11]} 13. Nbd2 {[%emt 0:08:26]} Nxd2 {[%emt 0:06:35]} 14. Bxd2 {[%emt 0:00:57]} Bf6 {[%emt 0:09:46]} 15. h3 {[%emt 0:05:54]} Be6 {[%emt 0:00:22]} 16. Bf4 {[%emt 0:07:13]} Nb6 {[%emt 0:04:23]} 17. Qc2 {[%emt 0:06:00]} Qc8 {[%emt 0:07:06]} 18. Bd3 {[%emt 0:08:06]} h6 {[%emt 0:00:36]} 19. Re3 {[%emt 0:08:20]} Rd8 {[%emt 0:10:40]} 20. Ne5 {[%emt 0:04:36]} Bxe5 {[%emt 0:04:56]} 21. Bxe5 {[%emt 0:01:08]} Nd7 {[%emt 0:01:18]} 22. f4 {[%emt 0:01:42]} Nxe5 {[%emt 0:06:50]} 23. fxe5 {[%emt 0:04:22]} a6 {[%emt 0:02:56]} 24. Rg3 {[%emt 0:01:57]} Kh8 {[%emt 0:00:06]} 25. Rf1 {[%emt 0:00:22]} Qc7 {[%emt 0:02:18]} 26. Qd2 {[%emt 0:02:58]} Rac8 {[%emt 0:01:38]} 27. Rf6 {[%emt 0:01:31]} 1-0

[Event "26th Hit Open-A 2022"]
[Site "Nova Gorica"]
[Date "2022.09.15"]
[Round "1.36"]
[White "Gamal, Alaa"]
[Black "Walker, Samuel A"]
[Result "0-1"]
[ECO "A57"]
[WhiteElo "1693"]
[BlackElo "2028"]
[Annotator "ChessBase"]
[PlyCount "78"]
[EventDate "2022.09.16"]
[EventType "swiss"]
[EventCountry "SLO"]
[SourceTitle "playchess.com"]
[Source "ChessBase"]
[SourceQuality "1"]
[TimeControl "5400+30"]

1. d4 {[%emt 0:00:04]} Nf6 {[%emt 0:01:32]} 2. Nf3 {[%emt 0:00:33]} g6 {[%emt 0:00:15]} 3. c4 {[%emt 0:00:13]} c5 {[%emt 0:00:21]} 4. d5 {[%emt 0:00:36]} b5 {[%emt 0:00:25]} 5. Nc3 {[%emt 0:03:09]} b4 {[%emt 0:01:00]} 6. Nb1 {[%emt 0:00:37]} Bg7 {[%emt 0:03:41]} 7. Bf4 {[%emt 0:03:35]} d6 {[%emt 0:00:00]} 8. Qc2 {[%emt 0:01:21]} Bf5 {[%emt 0:00:09]} 9. Qa4+ {[%emt 0:00:23]} Nfd7 {[%emt 0:08:48]} 10. Qb3 {[%emt 0:01:15]} a5 {[%emt 0:05:22]} 11. a4 {[%emt 0:00:40]} bxa3 {[%emt 0:00:30]} 12. Nxa3 {[%emt 0:01:16]} a4 {[%emt 0:09:17]} 13. Qe3 {[%emt 0:02:14]} Qa5+ {[%emt 0:10:53]} 14. Nd2 {[%emt 0:02:14]} Bxb2 {[%emt 0:02:16]} 15. Ra2 {[%emt 0:05:42]} Bd4 {[%emt 0:03:15]} 16. Qg3 {[%emt 0:01:00]} Na6 {[%emt 0:03:18]} 17. Nb5 {[%emt 0:03:01]} Nb4 {[%emt 0:02:05]} 18. Nxd4 {[%emt 0:03:23]} cxd4 {[%emt 0:01:08]} 19. Qa3 {[%emt 0:08:21]} Nxa2 {[%emt 0:03:44]} 20. Qxa2 {[%emt 0:00:15]} a3 {[%emt 0:04:36]} 21. e4 {[%emt 0:01:11]} Bxe4 {[%emt 0:01:22]} 22. f3 {[%emt 0:00:04]} Bb1 {[%emt 0:02:13]} 23. Qxb1 {[%emt 0:00:05]} a2 {[%emt 0:00:08]} 24. Qa1 {[%emt 0:00:01]} Qc3 {[%emt 0:00:12]} 25. Qxc3 {[%emt 0:04:27]} dxc3 {[%emt 0:00:23]} 26. Nb3 {[%emt 0:00:34]} Nc5 {[%emt 0:01:54]} 27. Na1 {[%emt 0:00:28]} Rb8 {[%emt 0:00:31]} 28. Kf2 {[%emt 0:07:48]} Rb1 {[%emt 0:00:20]} 29. Nc2 {[%emt 0:00:05]} Rb2 {[%emt 0:00:05]} 30. Be2 {[%emt 0:02:46]} Rxc2 {[%emt 0:00:08]} 31. Bh6 {[%emt 0:01:02]} Nb3 {[%emt 0:00:45]} 32. Ke3 {[%emt 0:03:31]} Rxe2+ {[%emt 0:03:14]} 33. Kxe2 {[%emt 0:00:05]} a1=Q {[%emt 0:00:09]} 34. Rxa1 {[%emt 0:00:10]} Nxa1 {[%emt 0:00:04]} 35. Bg7 {[%emt 0:00:02]} Rg8 {[%emt 0:00:14]} 36. Bxc3 {[%emt 0:00:03]} Nb3 {[%emt 0:00:08]} 37. g4 {[%emt 0:03:25]} Kd7 {[%emt 0:00:40]} 38. g5 {[%emt 0:00:11]} Ra8 {[%emt 0:00:12]} 39. Kf2 {[%emt 0:03:39]} Ra4 {[%emt 0:01:35]} 0-1

[Event "26th Hit Open-A 2022"]
[Site "Nova Gorica"]
[Date "2022.09.15"]
[Round "1.37"]
[White "Hercog, Nusa"]
[Black "Novak, Simona"]
[Result "1-0"]
[ECO "D52"]
[WhiteElo "2019"]
[BlackElo "1692"]
[Annotator "ChessBase"]
[PlyCount "75"]
[EventDate "2022.09.16"]
[EventType "swiss"]
[EventCountry "SLO"]
[SourceTitle "playchess.com"]
[Source "ChessBase"]
[SourceQuality "1"]
[TimeControl "5400+30"]

1. d4 {[%emt 0:00:05]} d5 {[%emt 0:00:10]} 2. c4 {[%emt 0:00:06]} c6 {[%emt 0:00:13]} 3. Nf3 {[%emt 0:00:21]} Nf6 {[%emt 0:00:21]} 4. Nc3 {[%emt 0:01:26]} e6 {[%emt 0:01:05]} 5. cxd5 {[%emt 0:01:31]} exd5 {[%emt 0:01:57]} 6. Bg5 {[%emt 0:00:33]} Nbd7 {[%emt 0:07:13]} 7. Qc2 {[%emt 0:01:58]} Qa5 {[%emt 0:03:22]} 8. Nd2 {[%emt 0:08:18]} Bb4 {[%emt 0:03:10]} 9. e3 {[%emt 0:01:30]} O-O {[%emt 0:02:38]} 10. Bd3 {[%emt 0:00:55]} h6 {[%emt 0:10:02]} 11. Bh4 {[%emt 0:00:35]} Re8 {[%emt 0:03:09]} 12. O-O {[%emt 0:01:08]} Bxc3 {[%emt 0:01:08]} 13. bxc3 {[%emt 0:00:34]} Qa3 {[%emt 0:06:39]} 14. Rae1 {[%emt 0:20:01]} b6 {[%emt 0:01:47]} 15. e4 {[%emt 0:00:24]} Ba6 {[%emt 0:07:37]} 16. Bxa6 {[%emt 0:03:14]} Qxa6 {[%emt 0:00:02]} 17. e5 {[%emt 0:00:26]} Nh7 {[%emt 0:00:51]} 18. f4 {[%emt 0:01:36]} c5 {[%emt 0:04:38]} 19. f5 {[%emt 0:03:02]} cxd4 {[%emt 0:05:25]} 20. cxd4 {[%emt 0:00:13]} Rac8 {[%emt 0:00:07]} 21. Qb3 {[%emt 0:15:25]} Qb7 {[%emt 0:00:19]} 22. f6 {[%emt 0:04:56]} g5 {[%emt 0:03:51]} 23. Bf2 {[%emt 0:03:32]} Kh8 {[%emt 0:06:40]} 24. Qh3 {[%emt 0:01:28]} Rg8 {[%emt 0:00:29]} 25. Qxh6 {[%emt 0:01:43]} Rg6 {[%emt 0:00:43]} 26. Qh5 {[%emt 0:00:48]} Ndf8 {[%emt 0:02:00]} 27. Be3 {[%emt 0:01:25]} Ne6 {[%emt 0:00:32]} 28. Rf3 {[%emt 0:02:00]} g4 {[%emt 0:01:41]} 29. Rf5 {[%emt 0:00:31]} Qd7 {[%emt 0:02:44]} 30. Qh4 {[%emt 0:03:03]} Qe8 {[%emt 0:04:45]} 31. Rh5 {[%emt 0:00:29]} Qg8 {[%emt 0:00:17]} 32. Nf1 {[%emt 0:02:54]} Rc2 {[%emt 0:03:48]} 33. Ng3 {[%emt 0:01:01]} Rc3 {[%emt 0:02:59]} 34. Nf5 {[%emt 0:01:13]} Rxe3 {[%emt 0:06:21]} 35. Rxe3 {[%emt 0:00:17]} Neg5 {[%emt 0:00:31]} 36. Ne7 {[%emt 0:00:55]} Qe8 {[%emt 0:04:06]} 37. Nxg6+ {[%emt 0:00:11]} fxg6 {[%emt 0:00:49]} 38. Rxg5 {[%emt 0:00:14]} 1-0

[Event "26th Hit Open-A 2022"]
[Site "Nova Gorica"]
[Date "2022.09.15"]
[Round "1.38"]
[White "Cokan, Mirko"]
[Black "Teo, Hong Ming"]
[Result "1/2-1/2"]
[ECO "B22"]
[WhiteElo "1683"]
[BlackElo "2013"]
[Annotator "ChessBase"]
[PlyCount "41"]
[EventDate "2022.09.16"]
[EventType "swiss"]
[EventCountry "SLO"]
[SourceTitle "playchess.com"]
[Source "ChessBase"]
[SourceQuality "1"]
[TimeControl "5400+30"]

1. e4 {[%emt 0:00:43]} c5 {[%emt 0:00:08]} 2. c3 {[%emt 0:01:55]} Nf6 {[%emt 0:05:19]} 3. e5 {[%emt 0:02:34]} Nd5 {[%emt 0:00:15]} 4. d4 {[%emt 0:04:54]} cxd4 {[%emt 0:00:14]} 5. cxd4 {[%emt 0:00:20]} d6 {[%emt 0:01:04]} 6. f4 {[%emt 0:03:39]} Nc6 {[%emt 0:05:53]} 7. Nc3 {[%emt 0:02:59]} e6 {[%emt 0:06:59]} 8. Nf3 {[%emt 0:01:20]} Be7 {[%emt 0:02:40]} 9. Be2 {[%emt 0:05:01]} O-O {[%emt 0:03:03]} 10. O-O {[%emt 0:00:20]} Qb6 {[%emt 0:02:29]} 11. Kh1 {[%emt 0:01:39]} f6 {[%emt 0:05:20]} 12. Bd3 {[%emt 0:07:21]} fxe5 {[%emt 0:11:56]} 13. Nxd5 {[%emt 0:08:35]} exd5 {[%emt 0:00:07]} 14. dxe5 {[%emt 0:00:55]} dxe5 {[%emt 0:00:59]} 15. Nxe5 {[%emt 0:03:05]} Nxe5 {[%emt 0:01:33]} 16. fxe5 {[%emt 0:00:26]} Rxf1+ {[%emt 0:06:58]} 17. Bxf1 {[%emt 0:03:52]} Be6 {[%emt 0:00:38]} 18. b3 {[%emt 0:02:09]} Rd8 {[%emt 0:12:09]} 19. Bf4 {[%emt 0:03:21]} d4 {[%emt 0:05:06]} 20. Bd3 {[%emt 0:02:59]} g6 {[%emt 0:00:29]} 21. Rc1 {[%emt 0:04:59]} 1/2-1/2